bitfinex/quotes_ETHUSD_20240621
["timestamp","ask_amount","ask_price","bid_price","bid_amount"]
[1719009667756,0.49046346,3530.5,3530.3,0.1192848]
[1719009667987,2.26591,3530.6,3530.3,0.1192848]
[1719009668194,0.49046704,3530.5,3530.3,0.1192848]
[1719009668348,2.26591,3530.6,3530.3,0.1192848]
[1719009670117,6.79809,3530.4,3530.3,0.1192848]
[1719009670400,2.26612,3530.3,3529.8,2.26636]
[1719009670563,2.75667144,3530.2,3529.8,2.26636]
[1719009670771,2.26616,3530.2,3529.9,0.11956571]
[1719009673972,2.2661,3530.3,3529.9,2.38590571]
[1719009674712,2.26618,3530.2,3529.9,2.38590571]
[1719009677521,2.2661,3530.3,3530.0,2.26627]
[1719009677683,2.2661,3530.3,3530.0,0.11970684]
[1719009680707,2.2661,3530.3,3529.9,2.26634]
[1719009680910,2.2661,3530.3,3530.1,0.11967888]
[1719009681138,2.2661,3530.3,3529.9,2.26634]
[1719009681309,2.2661,3530.3,3530.2,0.11965092]
[1719009681528,2.75661077,3530.3,3529.9,2.26634]
[1719009681746,2.2661,3530.3,3530.2,0.11965092]
[1719009681947,2.75661544,3530.3,3529.9,2.26634]
[1719009682174,2.2661,3530.3,3530.2,0.11965092]
[1719009682317,0.49051564,3530.2,3529.9,2.26634]
[1719009682515,2.2661,3530.3,3530.2,0.11965092]
[1719009682817,2.75661555,3530.3,3530.2,0.11965092]
[1719009683018,2.75661555,3530.3,3529.9,2.26634]
[1719009683331,0.49051555,3530.2,3530.0,0.11970684]
[1719009683517,2.2661,3530.3,3530.0,0.11970684]
[1719009683858,0.49050625,3530.2,3530.0,0.11970684]
[1719009684155,2.2661,3530.3,3530.0,0.11970684]
[1719009684355,0.4905056,3530.2,3530.0,0.11970684]
[1719009684518,2.2661,3530.3,3530.0,0.11970684]
[1719009684714,0.49050674,3530.2,3530.0,0.11970684]
[1719009685012,2.2661,3530.3,3530.0,0.11970684]
[1719009685418,0.4905071,3530.2,3530.0,0.11970684]
[1719009685716,2.2658,3530.8,3530.0,0.11970684]
[1719009685717,2.2658,3530.8,3530.1,2.4157]
[1719009686017,3.10636532,3530.7,3530.2,2.2661]
[1719009686329,0.49047532,3530.6,3530.3,0.11962296]
[1719009686656,0.49047532,3530.5,3530.3,0.11962296]
[1719009686814,2.26589,3530.7,3530.3,0.11962296]
[1719009687019,0.49043067,3530.6,3530.3,0.11962296]
[1719009687352,0.49043067,3530.5,3530.3,2.38566296]
[1719009687516,0.49043067,3530.6,3530.4,2.26603]
[1719009687726,3.49043067,3530.9,3530.5,2.4157]
[1719009687920,0.49042305,3530.8,3530.6,2.2659]
[1719009688223,0.49042305,3530.7,3530.6,2.38541532]
[1719009688418,0.49042246,3530.7,3530.6,2.38541532]
[1719009691420,0.49042207,3530.7,3530.6,2.38541532]
[1719009693775,0.49042207,3530.7,3530.6,4.65131532]
[1719009693979,2.26556,3531.2,3530.6,2.38541532]
[1719009694144,0.35,3530.9,3530.8,2.26573]
[1719009694332,0.84037387,3530.9,3530.8,2.26573]
[1719009694537,2.26556,3531.2,3530.8,2.26573]
[1719009694538,2.26556,3531.2,3530.8,4.80082711]
[1719009694739,0.84036489,3531.1,3530.8,4.80082711]
[1719009694959,0.35,3531.1,3530.8,4.80082711]
[1719009695176,0.49036659,3531.0,3530.8,4.80082711]
[1719009695496,0.49037417,3530.9,3530.8,4.80082711]
[1719009695676,0.35,3531.1,3530.9,2.2657]
[1719009695866,0.49037402,3531.0,3530.9,2.2657]
[1719009696255,0.49037402,3531.0,3530.8,2.26577]
[1719009696455,0.49037402,3530.9,3530.8,2.26577]
[1719009696753,2.26552,3531.2,3530.8,2.26577]
[1719009696754,0.84037402,3531.1,3530.8,2.26577]
[1719009696967,0.49037402,3531.0,3530.8,2.26577]
[1719009697387,0.49037402,3531.0,3530.9,0.11936916]
[1719009697695,2.26533,3531.5,3531.1,2.26555]
[1719009697900,0.35,3531.3,3531.1,2.26555]
[1719009698053,2.75575159,3531.4,3531.2,0.11928532]
[1719009698257,0.49035626,3531.3,3530.9,2.2657]
[1719009698472,0.49035626,3531.2,3531.0,2.26564]
[1719009698666,0.49035626,3531.3,3531.0,2.26564]
[1719009698956,2.26533,3531.5,3531.2,2.26551]
[1719009699157,0.8403571,3531.4,3531.2,2.26551]
[1719009699369,0.4903571,3531.3,3531.2,2.26551]
[1719009700598,0.4903571,3531.3,3531.2,4.53102]
[1719009700807,3.0,3531.6,3531.3,2.26542]
[1719009700977,0.49034473,3531.5,3531.3,2.26542]
[1719009701307,0.49034473,3531.4,3531.3,2.26542]
[1719009704115,2.2657,3531.0,3530.6,2.2659]
[1719009704328,0.35,3531.0,3530.6,2.26584]
[1719009704492,0.49040326,3530.9,3530.6,2.26584]
[1719009704814,4.67142,3531.2,3530.6,2.26584]
[1719009705024,3.10600179,3531.1,3530.6,2.26589]
[1719009705227,0.49041179,3531.0,3530.6,2.26589]
[1719009705380,0.49041179,3530.9,3530.6,2.26589]
[1719009705581,0.49041497,3530.8,3530.6,2.26589]
[1719009705813,2.26559,3531.1,3530.6,2.26589]
[1719009706014,2.75607976,3531.0,3530.7,2.26583]
[1719009706312,0.49040976,3530.9,3530.7,2.26583]
[1719009706996,2.26567,3531.0,3530.7,2.26583]
[1719009707190,0.49041684,3530.8,3530.7,2.26583]
[1719009707803,0.49041337,3530.8,3530.7,2.26583]
[1719009710130,0.49041337,3530.8,3530.6,2.2659]
[1719009710422,2.26567,3531.0,3530.6,2.2659]
[1719009710590,0.49041674,3530.7,3530.6,2.2659]
[1719009711426,2.26567,3531.0,3530.7,2.26583]
[1719009711590,0.49041843,3530.9,3530.7,2.26583]
[1719009711925,0.49041843,3530.8,3530.7,2.26583]
[1719009712338,0.49041843,3530.8,3530.7,2.38173903]
[1719009713485,0.49042318,3530.8,3530.7,2.38173903]
[1719009714003,0.49042058,3530.8,3530.7,2.38173903]
[1719009714320,0.15742058,3530.8,3530.7,2.38173903]
[1719009714525,2.26566,3531.0,3530.7,2.38173903]
[1719009714727,2.61566,3531.0,3530.7,2.38173903]
[1719009717315,0.35,3531.0,3530.7,0.11590903]
[1719009717541,2.26572,3530.9,3530.6,2.26588]
[1719009717749,2.26572,3530.9,3530.8,0.11588107]
[1719009717954,2.26572,3530.9,3530.6,2.26588]
[1719009718164,2.26572,3530.9,3530.8,0.11588107]
[1719009718369,4.67148,3531.1,3529.6,2.4708]
[1719009718370,2.26627,3530.1,3529.6,2.4708]
[1719009718576,2.26577,3530.8,3529.6,4.73729]
[1719009718577,2.26629,3530.0,3529.6,4.73729]
[1719009718871,2.26629,3530.0,3528.9,3.0]
[1719009718872,2.26629,3530.0,3529.7,0.11619457]
[1719009719057,2.26635,3529.9,3529.4,2.26667]
[1719009719375,2.26636,3529.9,3529.5,0.11245783]
[1719009719587,2.26643,3529.8,3529.5,0.11245783]
[1719009720433,2.26648,3529.7,3529.5,0.11245783]
[1719009722866,2.26654,3529.6,3529.3,2.26672]
[1719009723038,2.26636,3529.9,3529.1,4.64946]
[1719009723039,2.26661,3529.5,3529.4,0.10192151]
[1719009723354,2.26655,3529.6,3529.2,2.26678]
[1719009723560,2.26655,3529.6,3529.4,0.10192151]
[1719009723740,2.26655,3529.6,3529.2,2.26678]
[1719009723940,2.26655,3529.6,3529.5,0.10189354]
[1719009724176,2.26655,3529.6,3529.2,2.26678]
[1719009724379,2.26655,3529.6,3529.5,0.10189354]
[1719009724879,2.26655,3529.6,3529.2,2.26678]
[1719009725110,2.26655,3529.6,3529.5,0.10189354]
[1719009725263,2.26655,3529.6,3529.2,2.26678]
[1719009725466,2.26655,3529.6,3529.3,0.10194949]
[1719009725664,2.26655,3529.6,3528.8,4.6496]
[1719009725665,2.26658,3529.6,3528.8,4.6496]
[1719009725864,2.26673,3529.4,3529.0,2.26692]
[1719009726196,2.26673,3529.4,3529.1,0.10200544]
[1719009727498,2.26673,3529.3,3529.1,0.10200544]
[1719009727696,2.26673,3529.3,3528.9,2.26699]
[1719009727907,2.26673,3529.3,3529.2,0.10197746]
[1719009728074,2.26673,3529.3,3528.9,2.26699]
[1719009728262,2.26673,3529.3,3529.0,0.10203342]
[1719009728989,2.26669,3529.4,3529.0,2.36895342]
[1719009731611,2.2627,3529.0,3527.8,0.637511]
[1719009731843,1.65625,3529.4,3527.8,0.637511]
[1719009731844,6.79796,3527.9,3527.8,0.637511]
[1719009732104,10.83422906,3527.9,3527.8,0.637511]
[1719009732305,16.10185906,3527.9,3527.8,0.637511]
[1719009732510,16.10185906,3527.9,3527.8,0.34992289]
[1719009733074,16.45185906,3527.9,3527.8,0.34992289]
[1719009733311,18.34734007,3527.9,3527.8,0.34992289]
[1719009733803,11.54445007,3527.9,3526.4,2.26858]
[1719009734012,2.26834,3526.8,3526.4,2.26858]
[1719009734803,2.26834,3526.8,3526.2,2.26873]
[1719009734975,2.26834,3526.8,3526.3,2.26865]
[1719009735386,2.2684,3526.7,3526.3,2.26865]
[1719009735776,2.26834,3526.8,3526.4,2.26858]
[1719009736122,2.26826,3527.0,3526.2,5.26873]
[1719009736297,2.26834,3526.8,3526.3,2.2686]
[1719009736496,2.26837,3526.8,3526.3,2.2686]
[1719009736675,2.26841,3526.7,3526.2,3.0]
[1719009737014,2.26841,3526.7,3526.3,2.26865]
[1719009738103,2.26841,3526.7,3526.4,2.2686]
[1719009739187,2.26841,3526.7,3526.5,0.08610255]
[1719009739508,2.26841,3526.7,3526.4,2.2686]
[1719009739708,2.26841,3526.7,3526.6,0.08607453]
[1719009739875,2.26841,3526.7,3526.2,2.26866]
[1719009740075,2.26847,3526.6,3526.3,0.08615859]
[1719009740275,2.26847,3526.6,3526.2,2.26871]
[1719009740481,2.26847,3526.6,3526.3,0.08615859]
[1719009740708,2.26847,3526.6,3526.2,2.26871]
[1719009740976,2.26853,3526.5,3526.4,0.08613057]
[1719009741178,2.26853,3526.5,3526.1,4.65139]
[1719009741490,2.26853,3526.5,3526.0,2.26883]
[1719009741677,2.26853,3526.5,3526.2,0.08618661]
[1719009742010,2.26853,3526.5,3526.0,2.26883]
[1719009742212,2.26853,3526.5,3526.3,0.08615859]
[1719009742411,2.26853,3526.5,3526.0,2.26883]
[1719009742612,2.26853,3526.5,3526.4,0.08613057]
[1719009743126,2.26853,3526.5,3526.0,2.26883]
[1719009743423,2.26853,3526.5,3526.4,0.08613057]
[1719009743582,2.26853,3526.5,3526.1,2.26879]
[1719009744117,2.26853,3526.5,3526.2,0.08618661]
[1719009744278,2.26853,3526.5,3526.1,2.26879]
[1719009744618,2.26853,3526.5,3526.2,0.08618661]
[1719009745011,2.26853,3526.5,3526.1,2.26879]
[1719009745214,2.26853,3526.5,3526.3,0.08615859]
[1719009745523,2.26834,3526.8,3526.4,0.08836129]
[1719009745721,2.61834,3526.8,3526.4,0.08836129]
[1719009745922,2.26846,3526.7,3526.4,0.08836129]
[1719009746115,2.26848,3526.6,3526.4,0.08836129]
[1719009746726,2.26848,3526.6,3526.2,2.26872]
[1719009746930,2.26848,3526.6,3526.5,0.08833327]
[1719009747127,2.26848,3526.6,3526.2,2.26872]
[1719009747428,1.93548,3526.6,3526.5,0.08833327]
[1719009747592,1.93548,3526.6,3526.2,2.26872]
[1719009747792,1.93548,3526.6,3526.5,0.08833327]
[1719009748015,1.93548,3526.6,3526.2,2.26872]
[1719009748224,1.93548,3526.6,3526.5,0.08827975]
[1719009748689,1.93548,3526.6,3526.3,2.26866]
[1719009748886,1.93548,3526.6,3526.5,0.08827975]
[1719009749120,1.93548,3526.6,3526.3,2.26866]
[1719009749319,1.93548,3526.6,3526.5,0.08827975]
[1719009749529,1.93548,3526.6,3526.3,2.26866]
[1719009749894,1.93548,3526.6,3526.4,0.08830777]
[1719009750528,2.26841,3526.7,3526.4,0.08830777]
[1719009751826,2.3349,3527.2,3526.4,0.08830777]
[1719009751827,4.53654,3527.0,3526.6,2.26846]
[1719009752033,2.61827,3527.0,3526.6,2.26846]
[1719009752234,2.61827,3527.0,3526.7,0.08819695]
[1719009752544,2.61827,3527.0,3526.6,2.26846]
[1719009752743,2.61827,3527.0,3526.8,0.08816894]
[1719009753046,2.61827,3527.0,3526.6,2.26846]
[1719009753201,2.61827,3527.0,3526.9,0.08814092]
[1719009753401,3.340402,3527.0,3526.4,2.26859]
[1719009753610,2.26836,3526.8,3526.4,2.26859]
[1719009753853,2.26836,3526.8,3526.5,2.35673137]
[1719009755419,2.3349,3526.7,3526.5,0.08821137]
[1719009755617,4.60333,3526.7,3526.5,0.08821137]
[1719009755813,4.95333,3526.7,3526.2,2.26872]
[1719009756013,4.95333,3526.7,3526.6,0.08821308]
[1719009756309,2.26854,3526.5,3526.1,2.26878]
[1719009757844,2.26854,3526.5,3526.2,2.26872]
[1719009758206,2.26849,3526.6,3526.3,2.26866]
[1719009759933,2.3349,3526.5,3525.8,2.26896]
[1719009760154,4.60343,3526.5,3526.1,2.26874]
[1719009760361,4.60343,3526.5,3526.2,2.26872]
[1719009760533,4.60343,3526.5,3526.0,2.26885]
[1719009760534,0.35,3526.6,3526.0,2.2727]
[1719009760736,2.3349,3527.2,3526.5,2.26848]
[1719009760737,2.26835,3526.8,3526.5,2.26848]
[1719009761072,2.26828,3526.9,3526.5,2.26848]
[1719009761447,2.26828,3526.9,3526.6,0.08821605]
[1719009761645,0.4909726,3526.8,3526.6,0.08821605]
[1719009761875,2.26828,3526.9,3526.6,0.08821605]
[1719009762166,0.49097895,3526.8,3526.7,2.2684]
[1719009762334,0.49097895,3526.8,3526.7,0.08817912]
[1719009762533,0.49097895,3526.8,3526.7,2.2684]
[1719009762872,0.49097895,3526.8,3526.7,2.35657912]
[1719009764941,0.49097173,3526.8,3526.7,2.35657912]
[1719009766467,5.26746,3528.2,3527.5,4.53578]
[1719009766670,0.49085986,3527.6,3527.5,4.53578]
[1719009766876,2.26746,3528.2,3527.6,2.26782]
[1719009767166,2.4644,3528.3,3527.6,2.26782]
[1719009767167,0.35,3527.7,3527.6,2.26782]
[1719009767931,0.35,3527.7,3527.5,2.26788]
[1719009772438,0.35,3527.7,3527.6,0.08754651]
[1719009772746,0.35,3527.7,3527.6,2.35537651]
[1719009780309,0.35,3527.7,3527.6,0.08754651]
[1719009780310,2.61776,3527.7,3527.6,0.08754651]
[1719009780610,5.83480624,3527.7,3527.3,2.26799]
[1719009780814,0.49087024,3527.6,3527.4,0.08747472]
[1719009781017,5.08216,3527.7,3527.3,2.26799]
[1719009781177,0.49088228,3527.6,3527.3,2.26799]
[1719009781372,5.08216,3527.7,3527.3,2.26799]
[1719009781725,2.26784,3527.6,3527.2,2.26803]
[1719009782079,2.26784,3527.6,3527.3,0.08752949]
[1719009782277,2.26784,3527.6,3527.3,2.35550949]
[1719009784990,0.35,3527.7,3527.5,2.26786]
[1719009785209,0.35,3527.7,3527.6,0.08749303]
[1719009785398,0.84087213,3527.7,3527.6,0.08749303]
[1719009785605,3.10863213,3527.7,3527.6,0.08749303]
[1719009785817,3.10863213,3527.7,3527.4,2.26795]
[1719009786125,0.49087213,3527.6,3527.5,0.08752103]
[1719009787100,2.61776,3527.7,3527.5,0.08752103]
[1719009787412,0.49087794,3527.6,3527.5,0.08752103]
[1719009787626,0.49087983,3527.6,3527.5,2.35540103]
[1719009788223,0.49087218,3527.6,3527.5,2.35540103]
[1719009789941,0.49087218,3527.6,3527.5,4.62329103]
[1719009790168,0.35,3527.7,3527.6,2.26783]
[1719009790321,0.35,3527.7,3527.6,2.35529331]
[1719009790322,0.84084335,3527.7,3527.6,2.35529331]
[1719009793225,0.84084229,3527.7,3527.6,2.35529331]
[1719009795461,0.84083609,3527.7,3527.6,2.35529331]
[1719009796369,0.35,3527.7,3527.6,2.35529331]
[1719009796547,0.84082763,3527.7,3527.6,2.35529331]
[1719009796864,0.84082762,3527.7,3527.6,2.35529331]
[1719009797462,0.84082755,3527.7,3527.6,2.35529331]
[1719009797704,0.49082755,3527.7,3527.6,4.62312331]
[1719009799579,3.0,3528.0,3527.8,2.26769]
[1719009799779,0.49081738,3527.9,3527.8,2.26769]
[1719009799968,0.84081738,3527.9,3527.8,2.26769]
[1719009802387,0.84081738,3527.9,3527.8,2.35503487]
[1719009802588,0.35,3527.9,3527.8,2.35503487]
[1719009803188,0.84081258,3527.9,3527.8,2.35503487]
[1719009805657,0.35,3527.9,3527.8,2.35503487]
[1719009806093,0.84081987,3527.9,3527.8,2.35503487]
[1719009806721,0.84082426,3527.9,3527.8,2.35503487]
[1719009808734,0.35,3527.9,3527.8,2.35503487]
[1719009808953,0.84082423,3527.9,3527.8,2.35503487]
[1719009811851,0.35,3527.9,3527.8,2.35503487]
[1719009812446,0.84082494,3527.9,3527.8,2.35503487]
[1719009815021,0.84081157,3527.9,3527.8,2.35503487]
[1719009815575,0.84082356,3527.9,3527.8,2.35503487]
[1719009816859,0.52482356,3527.9,3527.8,2.35503487]
[1719009818072,0.35,3527.9,3527.8,2.35503487]
[1719009822563,0.35,3527.9,3527.8,4.62273487]
[1719009822886,2.26712,3528.7,3527.8,4.62273487]
[1719009822887,2.46324286,3528.5,3528.4,2.26731]
[1719009823084,2.46324286,3528.6,3528.4,2.26731]
[1719009823256,0.35,3528.5,3528.4,2.35430863]
[1719009824353,0.35,3528.5,3528.4,2.26731]
[1719009824652,0.35,3528.5,3528.4,2.35430863]
[1719009826523,0.35,3528.5,3528.4,4.62161863]
[1719009826674,0.35,3528.5,3528.4,4.53462]
[1719009826874,0.35,3528.5,3528.4,2.35421058]
[1719009827094,0.84071908,3528.5,3528.4,4.62152058]
[1719009827305,0.35,3528.5,3528.4,2.35421058]
[1719009827517,0.84071374,3528.5,3528.4,4.62152058]
[1719009827720,0.49071374,3528.5,3528.4,4.62152058]
[1719009828078,2.26693,3529.0,3528.7,2.26712]
[1719009828401,0.35,3528.8,3528.7,2.26712]
[1719009828604,0.84069966,3528.8,3528.7,2.26712]
[1719009829615,0.8407002,3528.8,3528.7,4.53424]
[1719009829921,0.8407002,3528.8,3528.7,2.26712]
[1719009830631,0.35,3528.8,3528.7,2.26712]
[1719009831114,0.84069942,3528.8,3528.7,2.26712]
[1719009832216,0.35,3528.8,3528.7,9.14646]
[1719009832399,6.99028707,3529.5,3529.2,2.2668]
[1719009832605,3.49065646,3529.4,3529.3,0.08655962]
[1719009832793,3.35,3529.4,3529.3,2.35328962]
[1719009833116,0.84066395,3529.4,3529.3,0.08655962]
[1719009833497,0.84066395,3529.4,3529.2,2.26679]
[1719009833695,0.35,3529.4,3529.3,2.35328962]
[1719009833876,0.84064767,3529.4,3529.3,2.35328962]
[1719009834214,0.84061512,3529.4,3529.3,4.62001962]
[1719009834514,0.84061512,3529.4,3529.3,2.35328962]
[1719009835818,0.84061512,3529.4,3529.3,0.08655962]
[1719009835979,0.84061512,3529.4,3529.2,2.26679]
[1719009836175,0.35,3529.4,3529.3,0.08655962]
[1719009836378,0.35,3529.4,3529.2,2.2668]
[1719009836611,0.35,3529.4,3529.3,2.35328962]
[1719009837314,0.35,3529.4,3529.3,0.08655962]
[1719009837679,0.35,3529.4,3529.3,2.26673]
[1719009837976,0.35,3529.4,3529.3,2.35328962]
[1719009842187,2.26655,3529.6,3529.3,2.35328962]
[1719009842388,0.35,3529.5,3529.4,2.26667]
[1719009842727,0.35,3529.5,3529.4,4.61918857]
[1719009842925,3.0,3529.8,3529.5,2.26654]
[1719009843216,0.35,3529.7,3529.6,0.08579263]
[1719009844020,0.017,3529.7,3529.6,0.08579263]
[1719009844393,0.017,3529.7,3529.6,2.35233263]
[1719009844701,0.35,3529.7,3529.6,2.35233263]
[1719009847589,0.35,3529.7,3529.6,4.61887263]
[1719009847792,2.2502,3530.2,3529.7,2.26644]
[1719009847793,4.53252,3530.1,3529.7,2.26644]
[1719009847992,0.35,3529.9,3529.8,0.08573669]
[1719009848219,0.35,3529.9,3529.7,2.26644]
[1719009848418,0.35,3529.9,3529.8,0.08573669]
[1719009848605,0.35,3529.9,3529.7,2.26644]
[1719009848797,0.35,3529.9,3529.8,0.08573669]
[1719009849128,0.35,3529.9,3529.8,2.26641]
[1719009849301,0.35,3529.9,3529.8,2.35214669]
[1719009854715,0.35,3529.9,3529.8,0.08573669]
[1719009855011,0.8405521,3529.9,3529.7,2.26647]
[1719009855208,0.35,3529.9,3529.8,2.35196266]
[1719009856459,0.84053853,3529.9,3529.8,2.35196266]
[1719009856961,2.26617,3530.2,3529.8,2.35196266]
[1719009856962,2.26622,3530.1,3529.8,2.35196266]
[1719009857126,0.84053345,3530.0,3529.8,2.35196266]
[1719009857330,0.35,3530.0,3529.9,2.26635]
[1719009857867,0.84053342,3530.0,3529.9,2.35187469]
[1719009858058,2.26609,3530.3,3530.0,2.26626]
[1719009858219,0.4905121,3530.2,3530.1,2.35167876]
[1719009858546,2.2502,3530.7,3530.1,2.35167876]
[1719009858547,2.26584,3530.7,3530.4,2.26603]
[1719009858732,0.35,3530.5,3530.4,2.26603]
[1719009859049,0.84046768,3530.5,3530.4,2.26603]
[1719009860445,0.84046768,3530.5,3530.3,2.26608]
[1719009860655,0.49046768,3530.4,3530.3,2.26608]
[1719009860952,3.0,3530.6,3530.3,2.26608]
[1719009861123,0.35,3530.5,3530.3,2.26608]
[1719009861566,0.4904723,3530.4,3530.3,2.26608]
[1719009861930,3.0,3530.6,3530.3,2.26608]
[1719009862137,0.84047389,3530.5,3530.3,2.26608]
[1719009862334,0.35,3530.5,3530.4,0.08515633]
[1719009862574,0.84047384,3530.5,3530.4,0.08515633]
[1719009864158,0.35,3530.5,3530.4,0.08515633]
[1719009864364,0.84047227,3530.5,3530.4,0.08515633]
[1719009867263,0.84047353,3530.5,3530.4,0.08515633]
[1719009867567,0.35,3530.5,3530.4,0.08515633]
[1719009868073,0.8404762,3530.5,3530.4,0.08515633]
[1719009870168,3.1064362,3530.5,3530.4,0.08515633]
[1719009870358,2.61596,3530.5,3530.4,0.08515633]
[1719009870563,2.26627,3530.1,3529.6,2.26648]
[1719009870786,7.65894,3530.5,3530.4,0.0849664]
[1719009870986,7.65894,3530.5,3529.9,2.26633]
[1719009870987,2.26613,3530.3,3529.9,2.26633]
[1719009871187,0.35,3530.1,3529.9,2.26633]
[1719009871512,0.35,3530.1,3530.0,0.08493285]
[1719009871823,0.84051195,3530.1,3530.0,0.08493285]
[1719009873387,0.84051195,3530.1,3530.0,2.35121285]
[1719009873589,0.49050198,3530.1,3530.0,2.35121285]
[1719009874299,0.49050198,3530.1,3530.0,0.08493285]
[1719009874499,0.84050198,3530.1,3530.0,0.08493285]
[1719009875898,0.83507137,3530.1,3530.0,0.08493285]
[1719009876785,0.35,3530.1,3530.0,0.08493285]
[1719009878417,0.35,3530.1,3530.0,2.35121285]
[1719009878615,0.35,3530.1,3530.0,4.61749285]
[1719009878774,2.2659,3530.6,3530.3,2.26608]
[1719009879213,0.35,3530.5,3530.4,0.08495454]
[1719009879415,0.35,3530.5,3530.3,2.26608]
[1719009880808,2.61597,3530.5,3530.2,2.26615]
[1719009881376,2.61597,3530.5,3530.3,0.0849825]
[1719009883120,0.35,3530.5,3530.3,2.3510725]
[1719009884106,0.35,3530.5,3530.3,0.0849825]
[1719009884723,0.35,3530.5,3530.3,2.3510725]
[1719009885531,0.35,3530.5,3530.4,2.26603]
[1719009885685,0.35,3530.5,3530.4,4.53206]
[1719009885886,0.49044164,3530.5,3530.4,4.61695814]
[1719009886117,0.35,3530.8,3530.6,2.26585]
[1719009886324,0.49042384,3530.7,3530.6,2.26585]
[1719009887084,0.84042384,3530.7,3530.6,2.26585]
[1719009888504,0.84042384,3530.7,3530.5,2.26595]
[1719009888713,0.49042384,3530.6,3530.5,2.26595]
[1719009888919,0.35,3530.7,3530.5,2.26595]
[1719009889089,0.98087962,3530.6,3530.5,2.26595]
[1719009889290,0.49044228,3530.6,3530.5,2.26595]
[1719009889489,0.98088204,3530.6,3530.5,2.26595]
[1719009889724,0.98088235,3530.6,3530.5,2.26595]
[1719009890085,0.98089002,3530.6,3530.5,2.26595]
[1719009891929,0.98089002,3530.6,3530.5,4.53191]
[1719009892312,0.98087415,3530.6,3530.5,4.61678019]
[1719009895395,0.98087219,3530.6,3530.5,4.61678019]
[1719009898591,0.98087721,3530.6,3530.5,4.61678019]
[1719009898829,0.49044228,3530.6,3530.5,4.61678019]
[1719009899024,0.98087791,3530.6,3530.5,4.61678019]
[1719009899339,0.98087791,3530.6,3530.5,2.35082019]
[1719009900292,0.98087791,3530.6,3530.5,4.61678019]
[1719009901113,0.98087487,3530.6,3530.5,4.61678019]
[1719009903927,0.9808544,3530.6,3530.5,4.61678019]
[1719009905020,0.9808544,3530.6,3530.5,2.35082019]
[1719009905188,0.9808544,3530.6,3530.5,2.35083019]
[1719009905534,0.9808544,3530.6,3530.5,0.08487019]
[1719009905836,3.5967544,3530.6,3530.5,0.08487019]
[1719009906038,6.87225407,3530.6,3529.8,2.26637]
[1719009906239,6.87225407,3530.6,3529.7,2.2838]
[1719009906240,2.26603,3530.4,3530.0,2.26627]
[1719009906524,2.26603,3530.4,3530.0,2.26628]
[1719009906525,0.49041212,3530.3,3530.0,2.26628]
[1719009906748,2.94811212,3530.3,3529.8,2.26636]
[1719009906936,2.8077,3530.3,3529.8,2.26636]
[1719009907103,0.49049725,3530.2,3529.8,2.26636]
[1719009907308,2.8077,3530.3,3529.9,0.08497862]
[1719009907508,0.4905057,3530.2,3530.1,2.26622]
[1719009907707,0.4905057,3530.2,3530.1,2.35114269]
[1719009908011,2.26597,3530.5,3530.2,2.26615]
[1719009908219,2.26584,3530.7,3530.1,0.08492269]
[1719009908220,0.49048509,3530.2,3530.1,4.63493269]
[1719009908426,0.49048509,3530.2,3530.1,4.55001]
[1719009908742,2.45961281,3530.7,3530.4,2.26601]
[1719009908743,2.26584,3530.7,3530.4,2.26601]
[1719009908917,0.35,3530.5,3530.4,2.26601]
[1719009909258,0.84045423,3530.5,3530.4,2.26601]
[1719009909544,0.49045423,3530.5,3530.4,2.26601]
[1719009909711,0.84045423,3530.6,3530.4,2.26601]
[1719009909914,0.49045423,3530.5,3530.4,2.26601]
[1719009910143,2.26584,3530.7,3530.4,2.26601]
[1719009910344,0.49046132,3530.6,3530.5,2.26596]
[1719009910543,0.84046132,3530.6,3530.5,2.26596]
[1719009910748,0.49046132,3530.6,3530.5,2.26596]
[1719009912724,2.26579,3530.8,3530.4,2.26601]
[1719009913053,3.10630057,3530.7,3530.4,2.26601]
[1719009913343,0.49046399,3530.6,3530.4,2.26601]
[1719009913542,2.61584,3530.7,3530.4,2.26601]
[1719009913543,0.49046425,3530.5,3530.4,2.26601]
[1719009914124,0.49046425,3530.5,3530.4,2.35089331]
[1719009915825,0.49046425,3530.5,3530.4,6.90072331]
[1719009916561,3.0,3531.0,3530.8,2.26577]
[1719009916770,0.35,3530.9,3530.8,2.26577]
[1719009916994,0.84041807,3530.9,3530.8,2.26577]
[1719009917429,0.84041799,3530.9,3530.8,2.26577]
[1719009919564,0.84041241,3530.9,3530.8,2.26577]
[1719009921033,2.4577,3530.8,3530.7,2.26583]
[1719009921234,2.94811241,3530.8,3530.7,2.26583]
[1719009921561,3.29811241,3530.8,3530.7,2.26583]
[1719009922469,2.8077,3530.8,3530.7,2.35059384]
[1719009922651,0.84042863,3530.8,3530.7,2.35059384]
[1719009925636,0.84042841,3530.8,3530.7,2.35059384]
[1719009926044,0.84043319,3530.8,3530.7,2.35059384]
[1719009927969,0.49043319,3530.8,3530.7,2.35059384]
[1719009928681,4.72626082,3531.1,3530.7,2.35059384]
[1719009928840,0.84041941,3531.0,3530.7,2.35059384]
[1719009929039,0.49041941,3530.9,3530.7,2.35059384]
[1719009929237,0.49041941,3530.8,3530.7,0.08476384]
[1719009930551,0.49041941,3530.8,3530.7,2.35059384]
[1719009931790,2.46119456,3530.9,3530.7,2.35059384]
[1719009931947,0.49043174,3530.8,3530.7,2.35059384]
[1719009932591,2.9516263,3530.8,3530.7,0.08476384]
[1719009932741,0.49043174,3530.8,3530.7,0.08476384]
[1719009933577,5.2173963,3530.8,3530.7,0.08476384]
[1719009933782,2.26584,3530.7,3530.3,2.26604]
[1719009933989,0.49043174,3530.6,3530.4,2.26597]
[1719009934170,0.49043174,3530.7,3530.4,2.26597]
[1719009934359,5.5674663,3530.7,3530.3,2.26608]
[1719009934548,2.9516263,3530.6,3530.3,2.26608]
[1719009934749,0.49043174,3530.5,3530.3,2.26608]
[1719009934940,0.49048654,3530.4,3530.3,2.26608]
[1719009935139,0.49048654,3530.4,3530.1,2.26616]
[1719009935376,0.49049078,3530.3,3530.1,2.26616]
[1719009935541,2.26597,3530.5,3530.2,2.26616]